Cogmind - Beta 15 @@@ ROGUE MODE // 2025.10.18 @ 02:13:35 Player: kat Result: Destroyed by Y-45 Defender with Beam Rifle Performance ------------- Evolutions (2) 1000 Regions Visited (3) 600 Robots Destroyed (4) 20 Value Destroyed (190) 190 Prototype IDs (0) 0 Alien Tech Used (0) 0 Bonus (0) 0 TOTAL SCORE: 1810 Bonus ------- None Cogmind --------- Core Integrity 0/550 Matter 274/300 Energy 100/100 System Corruption 0% Temperature Cool (18) Movement Core (50) Location -8/Materials Parts ------- > --- POWER (2) -------- (None) > --- PROPULSION (4) --- (None) > --- UTILITY (3) ------ (None) > --- WEAPON (2) ------- (None) > --- INVENTORY (5) ---- Light Ion Engine Armored Treads Cooling System Subdweller Optics Improved Signal Interpreter Peak State ------------ > --- POWER ------------ Subdweller Power Source > --- PROPULSION ------- Aluminum Leg Subdweller Monowheel > --- UTILITY ---------- Small Storage Unit Subdweller Optics Improved Sensor Array > --- WEAPON ----------- Subdweller Laser Battle Rifle > --- INVENTORY -------- Light Ion Engine Armored Treads Cooling System Subdweller Optics Small Laser Light Assault Rifle Subdweller Machine Gun [Rating: 16] Favorites ----------- Power Subdweller Power Source Engine Subdweller Power Source Propulsion Aluminum Leg Leg Aluminum Leg Wheel Subdweller Monowheel Utility Subdweller Optics Device Subdweller Optics Storage Small Storage Unit Weapon Subdweller Laser Energy Gun Subdweller Laser Ballistic Gun Light Assault Rifle Build | -11 -10 -10 -8 ------- Run | Yrd Mat Sub Mat Slots Evolved 4 | . . . 4 Power 1 | . . . 1 Propulsion 2 | . . . 2 Utility 1 | . . . 1 Weapon . | . . . . Parts Attached 16 | 4 . 8 4 Power 2 | 1 . 1 . Engine 2 | 1 . 1 . Core . | . . . . Reactor . | . . . . Propulsion 3 | 2 . 1 . Treads . | . . . . Leg 2 | 2 . . . Wheel 1 | . . 1 . Hover . | . . . . Flight . | . . . . Utility 4 | . . 3 1 Device 3 | . . 2 1 Storage 1 | . . 1 . Processor . | . . . . Hackware . | . . . . Protection . | . . . . Artifact . | . . . . Weapon 7 | 1 . 3 3 Energy Gun 3 | 1 . 1 1 Energy Cannon . | . . . . Ballistic Gun 4 | . . 2 2 Ballistic Cannon . | . . . . Launcher . | . . . . Special Weapon . | . . . . Impact Weapon . | . . . . Slashing Weapon . | . . . . Piercing Weapon . | . . . . Special Melee Weapon . | . . . . Unidentified Prototypes . | . . . . Parts Lost 13 | . . 2 11 Power 2 | . . 1 1 Propulsion 3 | . . 1 2 Utility 3 | . . . 3 Weapon 5 | . . . 5 Highest Loss Streak 11 | . . 2 11 To Critical Strikes 1 | . . 1 . Average Backups 4 | 2 4 3 6 Power . | . 1 1 1 Propulsion . | . . . . Utility 1 | . 1 1 2 Weapon 1 | 1 2 1 2 Tool/Special . | . . . . Unused Backups 4 | . . . 4 Power 1 | . . . 1 Propulsion 1 | . . . 1 Utility 2 | . . . 2 Weapon . | . . . . Tool/Special . | . . . . Average Slot Usage (%) 58 | . 57 59 58 Engine 5 | . 14 3 7 Leg 15 | . 28 15 7 Wheel 1 | . . . 7 Device 10 | . . 11 12 Storage 1 | . . . 8 Energy Gun 12 | . 14 14 7 Ballistic Gun 10 | . . 13 8 Peak Build Rating 16 | 4 4 13 16 Average Rating 7 | 3 4 6 12 On Entrance 5 | . 4 4 12 Naked Turns 6 | . . . 6 Heaviest Build 19 | 6 6 18 19 Greatest Support 20 | 20 20 20 20 Greatest Overweight (x) 1 | 1 . 1 . Average Overweight (x) . | . . . . Largest Inventory Capacity 8 | 5 5 8 8 Average Capacity 5 | 5 5 5 7 Most Carried 8 | 4 4 5 8 Average Carried 4 | 2 4 4 6 Final Capacity 8 | 5 5 8 5 Final Carried 5 | 4 4 4 5 Class Distribution -------------------- 83% | Mutant 16% | Scavenger-Mutant Dominant Class ---------------- Mutant | -10/Materials Mutant | -10/Subcaves Scavenger-Mutant | -8/Materials Resources | -11 -10 -10 -8 ----------- Run | Yrd Mat Sub Mat Matter Collected 335 | 215 . 120 . Remotely . | . . . . Salvage Created 359 | . . 259 100 Parts 18 | . . 9 9 Haulers Intercepted . | . . . . Recyclers Shooed . | . . . . Parts Field Recycled . | . . . . Retrieved Matter . | . . . . Parts Self-Destructed 1 | . . 1 . Prevented . | . . . . Kills | -11 -10 -10 -8 ------- Run | Yrd Mat Sub Mat Combat Hostiles Destroyed 4 | . . 2 2 Guns 4 | . . 2 2 Classes Destroyed 3 | . . 1 2 Sentry 1 | . . . 1 Hunter 1 | . . . 1 Subdweller 2 | . . 2 . Best Kill Streak 1 | . . 1 1 Combat Bots Only 1 | . . 1 1 Max Kills in Single Turn 1 | . . 1 1 Gunslinging . | . . . . Exploded . | . . . . Melee . | . . . . Uniques/NPCs Destroyed . | . . . . Combat | -11 -10 -10 -8 -------- Run | Yrd Mat Sub Mat Hostile Shots Fired 145 | . . 25 120 Missed 43 | . . 5 38 Hits 102 | . . 20 82 Projectile 102 | . . 20 82 Critical Strikes 7 | . . 2 5 Damage Taken 1715 | . . 413 1302 Core 676 | . . 122 554 Absorbed by Shields . | . . . . Core Remaining (%) 75 | 100 . 51 . Volleys Fired 57 | . . 38 19 Largest 2 | . . 2 2 Hottest 85 | . . 85 85 Shots Fired 84 | . . 60 24 Gun 84 | . . 60 24 Cannon . | . . . . Launcher . | . . . . Special . | . . . . Kinetic 38 | . . 25 13 Thermal 46 | . . 35 11 Explosive . | . . . . Electromagnetic . | . . . . Robot Hit Streak 28 | . . 28 11 Robot Miss Streak 3 | . . 1 3 Penetration Max . | . . . . Secondary Targets 1 | . . 1 . Max Gunslinging Chain 1 | . . 1 . Shots Hit Robots 66 | . . 51 15 Core Hits 17 | . . 11 6 Critical Kills 1 | . . 1 . Critical Parts Destroyed . | . . . . Critical Strikes 2 | . . 2 . Destroy 2 | . . 2 . Melee Attacks . | . . . . Impact . | . . . . Slashing . | . . . . Piercing . | . . . . Sneak Attacks . | . . . . Combat Hostiles . | . . . . Follow-up Attacks . | . . . . Damage Inflicted 897 | . . 685 212 Guns 897 | . . 685 212 Cannons . | . . . . Explosions . | . . . . Melee . | . . . . Ramming . | . . . . Kinetic 318 | . . 185 133 Thermal 579 | . . 500 79 Explosive . | . . . . Electromagnetic . | . . . . Impact . | . . . . Slashing . | . . . . Piercing . | . . . . Highest Corruption 2 | . 2 2 . Average Corruption 2 | . 2 2 . Corruption Purged . | . . . . Corruption Blocked . | . . . . Effects 5 | . . 5 . Message Errors 3 | . . 3 . Heat Flow Errors 1 | . . 1 . Energy Discharges 1 | . . 1 . Overload Shots . | . . . . Overflow Damage . | . . . . Projectiles . | . . . . Explosions . | . . . . Melee . | . . . . Knockbacks . | . . . . Impact . | . . . . Kinetic . | . . . . Secondary . | . . . . Self-Inflicted Damage . | . . . . Shots . | . . . . Rammed . | . . . . Targets Rammed . | . . . . Kicked . | . . . . Crushed . | . . . . Highest Temperature 177 | . . 177 96 Average Temperature 33 | . . 35 32 Received Heat Transfer 741 | . . 66 675 Siege Activations . | . . . . Martial Activations . | . . . . Shielding Activations . | . . . . Robots Disrupted . | . . . . Combat Hostiles . | . . . . Robots Corrupted . | . . . . Combat Hostiles . | . . . . Parts Fried . | . . . . Impact Corruptions . | . . . . Robots Melted . | . . . . Combat Hostiles . | . . . . Parts Melted . | . . . . Heat Transferred 925 | . . 800 125 Parts Sabotaged . | . . . . Parts Stolen . | . . . . Parts Stripped . | . . . . Power Chain Reactions . | . . . . Alert | -11 -10 -10 -8 ------- Run | Yrd Mat Sub Mat Maximum Alert Level . | . . . . Low Security (%) 100 | 100 100 . 100 Level 1 . | . . . . Level 2 . | . . . . Level 3 . | . . . . Level 4 . | . . . . Level 5 . | . . . . High Security . | . . . . Max Security . | . . . . Peak Influence 30 | . 3 . 30 Initial . | . . . . Average 3 | . . . 6 Influence Increases 78 | . 3 . 75 Destroy 0b10 Robot/C 40 | . . . 40 Destroy Leader 20 | . . . 20 Successful Hack 3 | . 3 . . Disable Machine 15 | . . . 15 Influence Decreases 78 | . 3 . 75 Time Decay 48 | . 3 . 45 Lost Part 30 | . . . 30 Squads Dispatched 2 | . . . 2 Investigation . | . . . . Extermination . | . . . . Reinforcement 2 | . . . 2 Assault . | . . . . Garrison . | . . . . Intercept . | . . . . Searches Triggered . | . . . . Construction Impeded . | . . . . Haulers Reinforced . | . . . . Active Scanning Responses . | . . . . Cargo Convoy Interrupts . | . . . . Stealth | -11 -10 -10 -8 --------- Run | Yrd Mat Sub Mat Distress Signals 2 | . . . 2 Communications Jammed . | . . . . Distress Signals . | . . . . Times Spotted 12 | . . 2 10 Peak Tracking Total 7 | . . 2 7 Tactical Retreats . | . . . . Traps | -11 -10 -10 -8 ------- Run | Yrd Mat Sub Mat Traps Triggered 1 | . 1 . . Indirectly . | . . . . Trap Hack Attempts . | . . . . Triggered . | . . . . Disarmed . | . . . . Reprogrammed . | . . . . Reused . | . . . . Traps Extracted . | . . . . Installed . | . . . . Triggered . | . . . . Machines | -11 -10 -10 -8 ---------- Run | Yrd Mat Sub Mat Machines Disabled 1 | . . . 1 Max in Single Turn 1 | . . . 1 Machines Repaired . | . . . . Machines Dismantled . | . . . . Machines Sabotaged . | . . . . Overloaded Fab Kills . | . . . . Hacking | -11 -10 -10 -8 --------- Run | Yrd Mat Sub Mat Machines Accessed 3 | . 1 . 2 Terminals 3 | . 1 . 2 Fabricators . | . . . . Repair Stations . | . . . . Recycling Units . | . . . . Scanalyzers . | . . . . Garrison Access . | . . . . Total Hacks 5 | . 2 . 3 Successful 3 | . 2 . 1 Failed 2 | . . . 2 Catastrophic . | . . . . Database Lockouts . | . . . . Manual 1 | . . . 1 Terminals 5 | . 2 . 3 Fabricators . | . . . . Repair Stations . | . . . . Recycling Units . | . . . . Scanalyzers . | . . . . Garrison Access . | . . . . Terminal Hacks 3 | . 2 . 1 Terminal Index 1 | . 1 . . Alert Level 1 | . . . 1 Maintenance Status 1 | . 1 . . Fabricator Hacks . | . . . . Repair Station Hacks . | . . . . Recycling Unit Hacks . | . . . . Scanalyzer . | . . . . Garrison Access Hacks . | . . . . Unauthorized Hacks . | . . . . Terminals . | . . . . Fabricators . | . . . . Repair Stations . | . . . . Recycling Units . | . . . . Scanalyzers . | . . . . Garrison Access . | . . . . Data Cores Recovered . | . . . . Used . | . . . . Hacking Detections 1 | . 1 . . Full Trace Events . | . . . . Feedback Events . | . . . . Feedback Blocked . | . . . . Robot Schematics Acquired . | . . . . Robots Built . | . . . . Authchips . | . . . . Time . | . . . . Total Robot Build Rating . | . . . . Part Schematics Acquired . | . . . . Parts Built . | . . . . Authchips . | . . . . Time . | . . . . Total Part Build Rating . | . . . . Parts Repaired . | . . . . Time . | . . . . Parts Recycled . | . . . . Recycled Matter . | . . . . Retrieved Matter . | . . . . Retrieved Components . | . . . . Parts Scanalyzed . | . . . . Part Schematics Acquired . | . . . . Parts Damaged . | . . . . Bothacking | -11 -10 -10 -8 ------------ Run | Yrd Mat Sub Mat Used RIF Installer . | . . . . Robots Hacked . | . . . . Non-combat . | . . . . Combat . | . . . . Robot Hacks Applied . | . . . . Relay Couplers Released . | . . . . Fabnet Peak Effective % . | . . . . Robots Rewired . | . . . . Allies Hacked . | . . . . Hacks Repelled . | . . . . Allies | -11 -10 -10 -8 -------- Run | Yrd Mat Sub Mat Total Allies . | . . . . Largest Group . | . . . . Highest-Rated Group . | . . . . Highest-Rated Ally . | . . . . Total Orders . | . . . . Ally Attacks . | . . . . Total Damage . | . . . . Kills . | . . . . Allies Corrupted . | . . . . Allies Melted . | . . . . Intel | -11 -10 -10 -8 ------- Run | Yrd Mat Sub Mat Active Infowar (turns) 640 | . . 475 165 Optics 630 | . . 475 155 Sensors 97 | . . . 97 Robot Analysis Total . | . . . . Derelict Logs Recovered . | . . . . Drone Launches . | . . . . Drone Recoveries . | . . . . Exploration | -11 -10 -10 -8 ------------- Run | Yrd Mat Sub Mat Turns Passed 902 | 57 98 563 184 Spaces Moved 595 | 41 80 364 110 Core 5 | 5 . . . Treads . | . . . . Legs 470 | 36 80 354 . Wheels 120 | . . 10 110 Hover . | . . . . Flight . | . . . . Fastest Speed 50 | 50 120 110 110 Average Speed 118 | 116 120 121 110 Slowest Speed 190 | 120 120 190 110 Overloaded Moves . | . . . . Propulsion Burnouts . | . . . . Robots Hopped . | . . . . Potential Cave-ins . | . . . . Cave-ins Triggered . | . . . . Exploration Rate (%) 13 | 3 16 22 13 Regions Visited 3 Branch Regions 1 Pre-discovered Areas . | . . . . Known Exits Taken . | . . . . Unknown Exits Taken 3 | 1 1 1 . Scrap Searched . | . . . . Spaces Dug . | . . . . Terrain Destroyed . | . . . . Melee . | . . . . Projectile . | . . . . AOE . | . . . . Terrain Rammed . | . . . . Walls Destroyed . | . . . . Machines Disabled . | . . . . Actions | -11 -10 -10 -8 --------- Run | Yrd Mat Sub Mat Total 709 | 48 82 429 150 Wait 27 | . 3 11 13 Move 592 | 40 79 363 110 Hop . | . . . . Pick Up 12 | 4 . 4 4 Fast Attach 9 | 4 . 4 1 Attach 4 | . . 1 3 Detach . | . . . . Swap 3 | . . 3 . Drop 5 | . . 5 . Fire 57 | . . 38 19 Melee . | . . . . Ram . | . . . . Kick . | . . . . Crush . | . . . . Escape Stasis . | . . . . Rewire . | . . . . Trap . | . . . . Miscellaneous . | . . . . Route ------- -11/Scrapyard -10/Materials -10/Subcaves -8/Materials History --------- Turn | Location | Event 17 | -11/Scrapyard | Discovered new exit (range 16) 58 | -11/Scrapyard | Entered Materials 113 | -10/Materials | Discovered new exit (range 8) 156 | -10/Materials | Entered Subcaves 312 | -10/Subcaves | Build established: Mutant 603 | -10/Subcaves | Discovered new exit (range 15) 719 | -10/Subcaves | Entered Materials 719 | -8/Materials | Evolved 4 slots: Power x1, Propulsion x2, Utility x1 889 | -8/Materials | Core integrity fell below 50% 899 | -8/Materials | Core integrity fell below 20% 903 | -8/Materials | Destroyed by Y-45 Defender with Beam Rifle Last Messages --------------- 00855_ Critical hit (Burn: +37). 00858_ K-01 Serf collects debris. 00861_ Connecting with Terminal... 00871_ Aluminum Leg destroyed. 00872_ Battle Rifle destroyed. 00874_ Sub. Optics destroyed. 00875_ Y-45 Defender destroyed. 00876_ Sub. Power Source destroyed. 00876_ Critical hit (Burn: +37). 00876_ K-01 Serf collects debris. 00877_ Sub. Monowheel destroyed. 00879_ Sub. Machine Gun destroyed. 00880_ K-01 Serf collects debris. 00884_ Imp. Sensor Array destroyed. 00885_ Lgt. Assault Rifle destroyed. 00888_ Critical hit (Burn: +37). 00891_ K-01 Serf collects debris. 00894_ Sml. Laser destroyed. 00896_ Critical hit (Burn: +37). 00897_ Sml. Storage Unit destroyed. Map ----- +----------------------------------------------------+ | | | | | | | | | | | | | | | | | | | | | | | ???????????????????????????????????????? | | ???????????????????????????????????????? | | ???????????????????????????????????????? | | ???????????????????????????????????????? | | ???????????????????????########????????? | | ????###+################ #????????? | | ????# o / "T" #????????? | | ????# ## #????????? | | ????# ############# ## g #????????? | | ????# #???????????# ## #????????? | | ????# #??? ???## !## #????????? | | ##### #?# # g%##g#####????????? | | ! #?# + uYgg #??????????? | | ######### ! # #??????????? | | + # # @ #??????????? | | #########????????# #### #????????? | | #????????????????# ???#!![[!!#????????? | | ##????????????????# ???#!![[!!#????????? | | #?????????????????# ???########????????? | | #?????????????????# ???????????????????? | | #?????????????????# ???????????????????? | | #?????????????????# ???????????????????? | | #?????????????????# ???????????????????? | | ##????????????????? ???????????????????? | | #????????????????? ???????????????????? | | #?????????????????????????????????????? | | #?????????????????????????????????????? | | #?????????????????????????????????????? | | #?????????????????????????????????????? | | ##?????????????????????????????????????? | | ???????????????????????????????????????? | | ???????????????????????????????????????? | | ""?????????????????????????????????????? | | T" ????????????????????????????????????? | | ?????????????????????????????????????? | | ????????????????????????????????????? | | ???????????????????????????????????? | | +??????????????????????????????????? | | #??????????????????????????????????? | +----------------------------------------------------+ Best States ------------- Heat Dissipation 31 Energy Generation 15 Energy Capacity 250 Matter Stores 300 Matter Capacity 300 Sight Range 21 Robot Scan Range 15 Terrain Scan Density 10 Evasion (%) 55 Item Schematics ----------------- None Robot Schematics ------------------ None Fabricated ------------ Nothing Repaired ---------- Nothing Alien Tech Used ----------------- None Achievements -------------- None Challenges ------------ None Game ------ Seed BeamSegregatorPower Manual? 0 Play Time 00:13:29 Cumulative 29.3 hours Start 2025.10.17 @ 21:56:02 End 2025.10.18 @ 02:13:35 Sessions 3 Manual Loads 0 Difficulty Rogue Special Mode None Game No. 40 Rogue 39 Adventurer 1 Explorer 0 Win Type - Total 0 Types 0/0/0/0/0/0/0/0/0/0 Lore% 24 Gallery% 25 Achievement% 26 Wizard Run 0 Options --------- Layout 1 ASCII 0 Keyboard 0 Movement Mouse Keybinds 0 Fullscreen 1 Font 20/SmallcapsGlow Map View 54x42 Zoom Use 0% Tactical HUD 1 Map Filters NONE Filters NONE Steam 1 RUN: 03a89c86-5f25-48ae-ab75-a6dbfac8f8dc